[Event "*** Titled Tuesday Blitz"]
[Site "Chess.com"]
[Date "2020.05.19"]
[Round "4"]
[White "jtayar88"]
[Black "GMCarbone"]
[Result "1-0"]
[WhiteElo "2552"]
[BlackElo "2321"]
[TimeControl "180+1"]
[EndTime "12:41:02 PDT"]
[Termination "jtayar88 won by checkmate"]

1. e4 {[%clk 0:03:00.9]} 1... c5 {[%clk 0:02:59.6]} 2. Nf3 {[%clk 0:03:00.4]}
2... Nc6 {[%clk 0:03:00.1]} 3. Nc3 {[%clk 0:02:59.7]} 3... e6 {[%clk 0:02:58.5]}
4. d4 {[%clk 0:03:00]} 4... cxd4 {[%clk 0:02:59.4]} 5. Nxd4 {[%clk 0:03:00.6]}
5... Qc7 {[%clk 0:03:00]} 6. Be3 {[%clk 0:03:00.6]} 6... a6 {[%clk 0:02:58.2]}
7. Qd2 {[%clk 0:03:00.8]} 7... Nf6 {[%clk 0:02:58.1]} 8. O-O-O {[%clk
0:03:00.7]} 8... Bb4 {[%clk 0:02:58]} 9. f3 {[%clk 0:03:01]} 9... Ne5 {[%clk
0:02:58.4]} 10. Nb3 {[%clk 0:03:00.3]} 10... b5 {[%clk 0:02:53.4]} 11. Qe1
{[%clk 0:03:00.1]} 11... Be7 {[%clk 0:02:50.6]} 12. f4 {[%clk 0:02:58.3]} 12...
Ng6 {[%clk 0:02:42.4]} 13. e5 {[%clk 0:02:57.8]} 13... Ng4 {[%clk 0:02:42.6]}
14. Bd2 {[%clk 0:02:49.9]} 14... h5 {[%clk 0:02:35.2]} 15. Ne4 {[%clk
0:02:26.3]} 15... Bb7 {[%clk 0:02:33]} 16. Bd3 {[%clk 0:02:25]} 16... Nh6 {[%clk
0:02:28.1]} 17. Kb1 {[%clk 0:02:18.5]} 17... Nf5 {[%clk 0:02:27.8]} 18. Rf1
{[%clk 0:02:12.1]} 18... Rc8 {[%clk 0:02:26.9]} 19. Ba5 {[%clk 0:01:58.6]} 19...
Qb8 {[%clk 0:02:22.6]} 20. Bb4 {[%clk 0:01:56.8]} 20... O-O {[%clk 0:02:10.1]}
21. Bxe7 {[%clk 0:01:50.9]} 21... Ngxe7 {[%clk 0:02:11]} 22. Nd6 {[%clk
0:01:10.5]} 22... Nxd6 {[%clk 0:01:36.1]} 23. exd6 {[%clk 0:01:11.4]} 23... Nf5
{[%clk 0:01:36.5]} 24. Qe2 {[%clk 0:00:37.3]} 24... g6 {[%clk 0:01:32.9]} 25. g4
{[%clk 0:00:36.6]} 25... hxg4 {[%clk 0:01:33.8]} 26. Qxg4 {[%clk 0:00:36.3]}
26... Kg7 {[%clk 0:01:18.3]} 27. Rg1 {[%clk 0:00:23.1]} 27... Qa8 {[%clk
0:01:15.2]} 28. Bxf5 {[%clk 0:00:09.9]} 28... Bf3 {[%clk 0:01:14.9]} 29. Qg5
{[%clk 0:00:06.6]} 29... exf5 {[%clk 0:01:14.7]} 30. Rd2 {[%clk 0:00:04.4]}
30... Rfe8 {[%clk 0:01:09.4]} 31. Nd4 {[%clk 0:00:04.9]} 31... Rc5 {[%clk
0:00:57.2]} 32. h4 {[%clk 0:00:04.9]} 32... Qe4 {[%clk 0:00:52.3]} 33. h5 {[%clk
0:00:05.2]} 33... Qe1+ {[%clk 0:00:50.3]} 34. Rd1 {[%clk 0:00:05.6]} 34... Bxd1
{[%clk 0:00:41.5]} 35. h6+ {[%clk 0:00:06.5]} 35... Kh7 {[%clk 0:00:38.8]} 36.
Rxe1 {[%clk 0:00:07.4]} 36... Rxe1 {[%clk 0:00:34.3]} 37. b4 {[%clk 0:00:08.3]}
37... Bxc2+ {[%clk 0:00:28.8]} 38. Kb2 {[%clk 0:00:08.7]} 38... Rb1+ {[%clk
0:00:29.2]} 39. Ka3 {[%clk 0:00:09]} 39... Rc3+ {[%clk 0:00:28.4]} 40. Nb3
{[%clk 0:00:09.2]} 40... Bxb3 {[%clk 0:00:26.9]} 41. axb3 {[%clk 0:00:09.1]}
41... Rc2 {[%clk 0:00:17.3]} 42. Qf6 {[%clk 0:00:08.7]} 42... Kxh6 {[%clk
0:00:02.2]} 43. Qh8# {[%clk 0:00:07.6]} 1-0

[Event "*** Titled Tuesday Blitz"]
[Site "Chess.com"]
[Date "2020.05.19"]
[Round "4"]
[White "Bigfish1995"]
[Black "maciek_92"]
[Result "1-0"]
[WhiteElo "2989"]
[BlackElo "2737"]
[TimeControl "180+1"]
[EndTime "12:41:04 PDT"]
[Termination "Bigfish1995 won by resignation"]

1. e4 {[%clk 0:03:00.9]} 1... c5 {[%clk 0:02:59.1]} 2. Nf3 {[%clk 0:02:59.9]}
2... Nc6 {[%clk 0:02:58]} 3. d4 {[%clk 0:02:59]} 3... cxd4 {[%clk 0:02:58.9]} 4.
Nxd4 {[%clk 0:02:59.7]} 4... e6 {[%clk 0:02:59.5]} 5. Nc3 {[%clk 0:02:59.3]}
5... a6 {[%clk 0:02:59.4]} 6. g3 {[%clk 0:03:00]} 6... Nge7 {[%clk 0:02:54.5]}
7. Nb3 {[%clk 0:02:45.1]} 7... h5 {[%clk 0:02:48]} 8. h4 {[%clk 0:02:42.9]} 8...
Na5 {[%clk 0:02:39]} 9. Be2 {[%clk 0:02:38.5]} 9... b5 {[%clk 0:02:15.2]} 10.
Bxh5 {[%clk 0:02:33.3]} 10... b4 {[%clk 0:02:10.1]} 11. Na4 {[%clk 0:02:31.7]}
11... Bb7 {[%clk 0:01:59.5]} 12. Nac5 {[%clk 0:02:11.3]} 12... Bc6 {[%clk
0:01:50.1]} 13. Bg5 {[%clk 0:01:51.7]} 13... Nxb3 {[%clk 0:01:11.1]} 14. axb3
{[%clk 0:01:48]} 14... Qb6 {[%clk 0:01:11.1]} 15. Be3 {[%clk 0:01:14.7]} 15...
Nf5 {[%clk 0:01:03.9]} 16. Nxd7 {[%clk 0:01:13.8]} 16... Qc7 {[%clk 0:00:54.9]}
17. exf5 {[%clk 0:00:57.5]} 17... Qxd7 {[%clk 0:00:27.4]} 18. O-O {[%clk
0:00:56.9]} 18... Qxd1 {[%clk 0:00:25.1]} 19. Bxd1 {[%clk 0:00:56.1]} 19... exf5
{[%clk 0:00:25.5]} 20. Re1 {[%clk 0:00:52.7]} 20... Kd7 {[%clk 0:00:24.5]} 21.
Be2 {[%clk 0:00:52.4]} 21... Bd6 {[%clk 0:00:18]} 22. Rad1 {[%clk 0:00:44.6]}
22... Kc7 {[%clk 0:00:18]} 23. Bb6+ {[%clk 0:00:43.3]} 23... Kxb6 {[%clk
0:00:17.2]} 24. Rxd6 {[%clk 0:00:43.5]} 24... Rae8 {[%clk 0:00:09.9]} 25. f4
{[%clk 0:00:39.1]} 25... a5 {[%clk 0:00:08.4]} 26. Kf2 {[%clk 0:00:38.6]} 26...
Kc5 {[%clk 0:00:08.5]} 27. Red1 {[%clk 0:00:33.8]} 27... Re6 {[%clk 0:00:07.6]}
28. Rd8 {[%clk 0:00:26]} 28... Rxd8 {[%clk 0:00:07.1]} 29. Rxd8 {[%clk 0:00:26]}
29... Be4 {[%clk 0:00:07.2]} 30. c3 {[%clk 0:00:21.7]} 30... Rb6 {[%clk
0:00:05.5]} 31. Rc8+ {[%clk 0:00:16.8]} 31... Kd6 {[%clk 0:00:04.8]} 32. c4
{[%clk 0:00:14.3]} 32... Rc6 {[%clk 0:00:04.2]} 33. Ra8 {[%clk 0:00:13.6]} 33...
Rc5 {[%clk 0:00:02.1]} 34. Ra7 {[%clk 0:00:11.5]} 34... Ke6 {[%clk 0:00:01.8]}
35. Ke3 {[%clk 0:00:10.7]} 35... g6 {[%clk 0:00:02.7]} 36. Kd4 {[%clk
0:00:10.7]} 36... Rc6 {[%clk 0:00:03.5]} 37. Rxa5 {[%clk 0:00:10.2]} 37... Rd6+
{[%clk 0:00:04.4]} 38. Ke3 {[%clk 0:00:10.5]} 38... Rc6 {[%clk 0:00:04.9]} 39.
Re5+ {[%clk 0:00:10.1]} 39... Kf6 {[%clk 0:00:05.4]} 40. Rb5 {[%clk 0:00:10.6]}
40... Re6 {[%clk 0:00:06.2]} 41. Kf2 {[%clk 0:00:10.8]} 41... Bc2 {[%clk
0:00:06.4]} 42. Rxb4 {[%clk 0:00:11.1]} 42... Kg7 {[%clk 0:00:07.2]} 43. c5
{[%clk 0:00:11.5]} 43... Rc6 {[%clk 0:00:07.5]} 44. Rb5 {[%clk 0:00:10.8]} 44...
Be4 {[%clk 0:00:07.8]} 45. b4 {[%clk 0:00:11.1]} 45... Bd5 {[%clk 0:00:08]} 46.
Bf3 {[%clk 0:00:10.3]} 46... Bxf3 {[%clk 0:00:08.2]} 47. Kxf3 {[%clk 0:00:11.2]}
1-0

[Event "*** Titled Tuesday Blitz"]
[Site "Chess.com"]
[Date "2020.05.19"]
[Round "4"]
[White "Shuvalov"]
[Black "tteshan"]
[Result "1-0"]
[WhiteElo "2419"]
[BlackElo "2219"]
[TimeControl "180+1"]
[EndTime "12:41:04 PDT"]
[Termination "Shuvalov won by checkmate"]

1. Nf3 {[%clk 0:02:58.6]} 1... c5 {[%clk 0:02:58.2]} 2. c4 {[%clk 0:02:58]} 2...
g6 {[%clk 0:02:52.7]} 3. g3 {[%clk 0:02:57.8]} 3... Bg7 {[%clk 0:02:51.8]} 4.
Bg2 {[%clk 0:02:58.4]} 4... Nc6 {[%clk 0:02:52.3]} 5. O-O {[%clk 0:02:57.6]}
5... e6 {[%clk 0:02:52.8]} 6. e3 {[%clk 0:02:57.1]} 6... Nge7 {[%clk 0:02:53.1]}
7. d4 {[%clk 0:02:56.7]} 7... cxd4 {[%clk 0:02:52.7]} 8. exd4 {[%clk 0:02:57]}
8... O-O {[%clk 0:02:52.4]} 9. d5 {[%clk 0:02:47.3]} 9... Ne5 {[%clk 0:02:44.7]}
10. Nxe5 {[%clk 0:02:35.9]} 10... Bxe5 {[%clk 0:02:43.7]} 11. Nc3 {[%clk
0:02:27.5]} 11... d6 {[%clk 0:02:38.3]} 12. Bh6 {[%clk 0:02:25.1]} 12... Re8
{[%clk 0:02:33.8]} 13. Ne4 {[%clk 0:02:11.6]} 13... exd5 {[%clk 0:02:22]} 14.
cxd5 {[%clk 0:02:10.2]} 14... Nf5 {[%clk 0:02:01]} 15. Bg5 {[%clk 0:02:09.9]}
15... f6 {[%clk 0:01:44.3]} 16. Bc1 {[%clk 0:02:05.1]} 16... Qb6 {[%clk
0:01:38.1]} 17. a4 {[%clk 0:02:00.4]} 17... Bd7 {[%clk 0:01:29.2]} 18. a5 {[%clk
0:01:56.8]} 18... Qc7 {[%clk 0:00:53.6]} 19. Re1 {[%clk 0:01:26.6]} 19... Rac8
{[%clk 0:00:49.8]} 20. Re2 {[%clk 0:01:00.2]} 20... Nd4 {[%clk 0:00:43.9]} 21.
Rd2 {[%clk 0:00:56.3]} 21... Qc4 {[%clk 0:00:20.1]} 22. f4 {[%clk 0:00:37.6]}
22... Nb3 {[%clk 0:00:20]} 23. fxe5 {[%clk 0:00:37.7]} 23... Nxa1 {[%clk
0:00:15.8]} 24. Nxf6+ {[%clk 0:00:36.3]} 24... Kh8 {[%clk 0:00:15.7]} 25. Nxd7
{[%clk 0:00:20.6]} 25... Qxc1 {[%clk 0:00:14.8]} 26. e6 {[%clk 0:00:19.6]} 26...
Qxd1+ {[%clk 0:00:14.2]} 27. Rxd1 {[%clk 0:00:20.5]} 27... Nc2 {[%clk 0:00:13]}
28. Nf6 {[%clk 0:00:19.6]} 28... Ne3 {[%clk 0:00:12.1]} 29. Re1 {[%clk
0:00:18.6]} 29... Nxg2 {[%clk 0:00:11.8]} 30. Kxg2 {[%clk 0:00:19.5]} 30... Re7
{[%clk 0:00:10.9]} 31. Ne4 {[%clk 0:00:19.2]} 31... Rd8 {[%clk 0:00:10.4]} 32.
Rc1 {[%clk 0:00:18.9]} 32... Kg7 {[%clk 0:00:10.2]} 33. Kf3 {[%clk 0:00:18.6]}
33... Rf8+ {[%clk 0:00:09.5]} 34. Ke3 {[%clk 0:00:19.1]} 34... h5 {[%clk
0:00:08.4]} 35. h4 {[%clk 0:00:16.7]} 35... Rd8 {[%clk 0:00:08.1]} 36. Kd4
{[%clk 0:00:16.3]} 36... b6 {[%clk 0:00:07.3]} 37. a6 {[%clk 0:00:16]} 37... Rf8
{[%clk 0:00:05.5]} 38. Rc6 {[%clk 0:00:15.7]} 38... Rf1 {[%clk 0:00:04.8]} 39.
Rxd6 {[%clk 0:00:15.5]} 39... Rd1+ {[%clk 0:00:04.8]} 40. Ke5 {[%clk 0:00:16]}
40... Kf8 {[%clk 0:00:03.5]} 41. Rd8+ {[%clk 0:00:15.5]} 41... Re8 {[%clk
0:00:03.4]} 42. Rd7 {[%clk 0:00:15.5]} 42... Re7 {[%clk 0:00:03.4]} 43. Rb7
{[%clk 0:00:13.3]} 43... Re8 {[%clk 0:00:02.6]} 44. Rf7+ {[%clk 0:00:10.6]}
44... Kg8 {[%clk 0:00:02.6]} 45. Nf6+ {[%clk 0:00:11.3]} 45... Kh8 {[%clk
0:00:02.1]} 46. Rh7# {[%clk 0:00:11.6]} 1-0

[Event "*** Titled Tuesday Blitz"]
[Site "Chess.com"]
[Date "2020.05.19"]
[Round "4"]
[White "Mimsychess"]
[Black "spela91"]
[Result "1-0"]
[WhiteElo "2256"]
[BlackElo "2026"]
[TimeControl "180+1"]
[EndTime "12:41:04 PDT"]
[Termination "Mimsychess won on time"]

1. e4 {[%clk 0:03:00.9]} 1... c5 {[%clk 0:02:59.3]} 2. Nf3 {[%clk 0:03:00.5]}
2... Nc6 {[%clk 0:02:58.5]} 3. Bb5 {[%clk 0:02:57.5]} 3... e6 {[%clk 0:02:57.5]}
4. d4 {[%clk 0:02:49.2]} 4... cxd4 {[%clk 0:02:56.6]} 5. Nxd4 {[%clk 0:02:50.1]}
5... Nge7 {[%clk 0:02:56.4]} 6. O-O {[%clk 0:02:46.4]} 6... a6 {[%clk
0:02:53.9]} 7. Nxc6 {[%clk 0:02:32.7]} 7... Nxc6 {[%clk 0:02:48.7]} 8. Bd3
{[%clk 0:02:32.2]} 8... Bc5 {[%clk 0:02:41.3]} 9. Nc3 {[%clk 0:02:25.2]} 9...
O-O {[%clk 0:02:39.5]} 10. Kh1 {[%clk 0:02:25.3]} 10... b5 {[%clk 0:02:32.7]}
11. f4 {[%clk 0:02:13.6]} 11... Bb7 {[%clk 0:02:29.7]} 12. Qh5 {[%clk
0:02:13.4]} 12... Be7 {[%clk 0:01:36.6]} 13. e5 {[%clk 0:02:06.2]} 13... g6
{[%clk 0:01:31]} 14. Qh6 {[%clk 0:02:06]} 14... Nd4 {[%clk 0:01:25.1]} 15. Be3
{[%clk 0:01:45.6]} 15... Nf5 {[%clk 0:01:19.5]} 16. Bxf5 {[%clk 0:01:44.9]}
16... gxf5 {[%clk 0:01:07.5]} 17. Rad1 {[%clk 0:01:23.5]} 17... Kh8 {[%clk
0:00:56.1]} 18. Rf2 {[%clk 0:01:23.5]} 18... Rg8 {[%clk 0:00:52.2]} 19. Rfd2
{[%clk 0:01:20.5]} 19... Rg6 {[%clk 0:00:47.7]} 20. Qh3 {[%clk 0:01:17.1]} 20...
Bc6 {[%clk 0:00:46.4]} 21. Kg1 {[%clk 0:01:08.3]} 21... Qg8 {[%clk 0:00:45.5]}
22. g3 {[%clk 0:01:04.5]} 22... f6 {[%clk 0:00:26.5]} 23. Bd4 {[%clk 0:00:58.9]}
23... Rb8 {[%clk 0:00:19.4]} 24. exf6 {[%clk 0:00:50.6]} 24... Bxf6 {[%clk
0:00:19.3]} 25. Bxf6+ {[%clk 0:00:50.8]} 25... Rxf6 {[%clk 0:00:19.6]} 26. Ne2
{[%clk 0:00:51.7]} 26... Rf7 {[%clk 0:00:16.2]} 27. Nd4 {[%clk 0:00:50.3]} 27...
Ba8 {[%clk 0:00:15.3]} 28. Qh4 {[%clk 0:00:45.8]} 28... Qc8 {[%clk 0:00:14.7]}
29. Qh5 {[%clk 0:00:31.3]} 29... Kg8 {[%clk 0:00:11.6]} 30. Qg5+ {[%clk
0:00:09.9]} 30... Rg7 {[%clk 0:00:11.5]} 31. Qf6 {[%clk 0:00:09.8]} 31... Qb7
{[%clk 0:00:10.6]} 32. Kf2 {[%clk 0:00:09.3]} 32... Qg2+ {[%clk 0:00:08.1]} 33.
Ke1 {[%clk 0:00:09.7]} 33... Qh1+ {[%clk 0:00:06.6]} 34. Ke2 {[%clk 0:00:09.7]}
34... Qe4+ {[%clk 0:00:06.5]} 35. Kf2 {[%clk 0:00:08.8]} 35... Rf8 {[%clk
0:00:07.1]} 36. Qe5 {[%clk 0:00:04.6]} 36... Qg2+ {[%clk 0:00:05.3]} 37. Ke1
{[%clk 0:00:04.8]} 37... Qh1+ {[%clk 0:00:04.4]} 38. Ke2 {[%clk 0:00:04.6]}
38... Qe4+ {[%clk 0:00:02.4]} 39. Qxe4 {[%clk 0:00:04.1]} 39... Bxe4 {[%clk
0:00:02.6]} 40. Nf3 {[%clk 0:00:02.7]} 40... d5 {[%clk 0:00:01.3]} 41. c3 {[%clk
0:00:02.7]} 1-0

[Event "*** Titled Tuesday Blitz"]
[Site "Chess.com"]
[Date "2020.05.19"]
[Round "4"]
[White "want2lose"]
[Black "Vandros57"]
[Result "1-0"]
[WhiteElo "2827"]
[BlackElo "1957"]
[TimeControl "180+1"]
[EndTime "12:41:05 PDT"]
[Termination "want2lose won on time"]

1. e4 {[%clk 0:03:00.7]} 1... c5 {[%clk 0:02:58.9]} 2. Nf3 {[%clk 0:03:01]} 2...
e6 {[%clk 0:02:58.3]} 3. d4 {[%clk 0:03:01.1]} 3... cxd4 {[%clk 0:02:58.1]} 4.
Nxd4 {[%clk 0:03:02]} 4... Nc6 {[%clk 0:02:57.1]} 5. Nc3 {[%clk 0:02:58.6]} 5...
Nf6 {[%clk 0:02:55.6]} 6. Nxc6 {[%clk 0:02:57.6]} 6... bxc6 {[%clk 0:02:51.8]}
7. e5 {[%clk 0:02:57.6]} 7... Nd5 {[%clk 0:02:49.9]} 8. Ne4 {[%clk 0:02:58]}
8... f5 {[%clk 0:02:47.3]} 9. exf6 {[%clk 0:02:57.1]} 9... Nxf6 {[%clk
0:02:46.7]} 10. Nd6+ {[%clk 0:02:57.4]} 10... Bxd6 {[%clk 0:02:45.7]} 11. Qxd6
{[%clk 0:02:58.3]} 11... Qb6 {[%clk 0:02:29.8]} 12. Bd3 {[%clk 0:02:54.7]} 12...
Ba6 {[%clk 0:02:15.8]} 13. O-O {[%clk 0:02:51]} 13... Bxd3 {[%clk 0:02:13.9]}
14. cxd3 {[%clk 0:02:44.7]} 14... Kf7 {[%clk 0:02:00.6]} 15. Bg5 {[%clk
0:02:41.4]} 15... Rad8 {[%clk 0:01:52]} 16. Bxf6 {[%clk 0:02:39.5]} 16... gxf6
{[%clk 0:01:47]} 17. b3 {[%clk 0:02:30.4]} 17... c5 {[%clk 0:01:43.7]} 18. Qf4
{[%clk 0:02:28.3]} 18... h5 {[%clk 0:01:36.5]} 19. Rfe1 {[%clk 0:02:25.9]} 19...
Rdg8 {[%clk 0:01:34.3]} 20. Re3 {[%clk 0:02:25.4]} 20... Rg4 {[%clk 0:01:32.5]}
21. Qf3 {[%clk 0:02:21]} 21... Rhg8 {[%clk 0:01:29.6]} 22. g3 {[%clk 0:02:21.2]}
22... h4 {[%clk 0:01:27.9]} 23. Re4 {[%clk 0:02:17]} 23... f5 {[%clk 0:01:21.5]}
24. Rc4 {[%clk 0:02:13.7]} 24... h3 {[%clk 0:01:06.6]} 25. Rac1 {[%clk
0:01:43.1]} 25... d6 {[%clk 0:00:56.6]} 26. d4 {[%clk 0:01:40.8]} 26... Rxd4
{[%clk 0:00:47.6]} 27. Qh5+ {[%clk 0:01:38.6]} 27... Kf6 {[%clk 0:00:40.4]} 28.
Qxh3 {[%clk 0:01:31.3]} 28... Rxc4 {[%clk 0:00:37.3]} 29. bxc4 {[%clk
0:01:32.2]} 29... Qb2 {[%clk 0:00:28.7]} 30. Re1 {[%clk 0:01:31.2]} 30... Qd2
{[%clk 0:00:23.3]} 31. Qh4+ {[%clk 0:01:19.6]} 31... Kf7 {[%clk 0:00:22.2]} 32.
Qh5+ {[%clk 0:01:16.6]} 32... Rg6 {[%clk 0:00:22]} 33. Rxe6 {[%clk 0:01:05.5]}
33... Kxe6 {[%clk 0:00:19.5]} 34. Qxg6+ {[%clk 0:01:05.6]} 34... Ke5 {[%clk
0:00:18.3]} 35. h4 {[%clk 0:01:02.1]} 35... Qe1+ {[%clk 0:00:14.1]} 36. Kg2
{[%clk 0:01:01.1]} 36... Qe4+ {[%clk 0:00:13.7]} 37. Kh2 {[%clk 0:01:01.6]}
37... Qf3 {[%clk 0:00:11.9]} 38. Qg7+ {[%clk 0:01:00.4]} 38... Ke6 {[%clk
0:00:10.1]} 39. Qb2 {[%clk 0:00:51.8]} 39... f4 {[%clk 0:00:08.6]} 40. Qc2
{[%clk 0:00:47.9]} 40... fxg3+ {[%clk 0:00:07.5]} 41. fxg3 {[%clk 0:00:48.8]}
41... a5 {[%clk 0:00:06.3]} 42. Qg6+ {[%clk 0:00:36.1]} 42... Kd7 {[%clk
0:00:06]} 43. Qc2 {[%clk 0:00:33.8]} 43... a4 {[%clk 0:00:05.3]} 44. Qxa4+
{[%clk 0:00:32.2]} 44... Ke6 {[%clk 0:00:05.3]} 45. Qc2 {[%clk 0:00:32.7]} 45...
Kd7 {[%clk 0:00:04.7]} 46. a4 {[%clk 0:00:32.2]} 46... Kc6 {[%clk 0:00:03.6]}
47. a5 {[%clk 0:00:32.5]} 47... Kb7 {[%clk 0:00:03.2]} 48. Qb2+ {[%clk
0:00:32.2]} 48... Kc8 {[%clk 0:00:01.9]} 49. a6 {[%clk 0:00:31.7]} 1-0

[Event "*** Titled Tuesday Blitz"]
[Site "Chess.com"]
[Date "2020.05.19"]
[Round "4"]
[White "parmupill123"]
[Black "CzechmVIII"]
[Result "1-0"]
[WhiteElo "2412"]
[BlackElo "2203"]
[TimeControl "180+1"]
[EndTime "12:41:06 PDT"]
[Termination "parmupill123 won by resignation"]

1. e4 {[%clk 0:03:00.9]} 1... c5 {[%clk 0:02:59.6]} 2. Nc3 {[%clk 0:02:56.8]}
2... Nc6 {[%clk 0:02:58.9]} 3. g3 {[%clk 0:02:57.7]} 3... g6 {[%clk 0:02:58.7]}
4. Bg2 {[%clk 0:02:58.1]} 4... Bg7 {[%clk 0:02:59.3]} 5. d3 {[%clk 0:02:58.5]}
5... d6 {[%clk 0:02:59.6]} 6. Be3 {[%clk 0:02:58]} 6... Nh6 {[%clk 0:02:59.6]}
7. h3 {[%clk 0:02:56.9]} 7... f5 {[%clk 0:02:59.5]} 8. Qd2 {[%clk 0:02:55.8]}
8... Nf7 {[%clk 0:02:59.5]} 9. Nge2 {[%clk 0:02:55.3]} 9... O-O {[%clk
0:02:59.4]} 10. O-O {[%clk 0:02:53.3]} 10... Rb8 {[%clk 0:02:59.6]} 11. Kh2
{[%clk 0:02:46.2]} 11... Nd4 {[%clk 0:02:59.1]} 12. f4 {[%clk 0:02:43.8]} 12...
b5 {[%clk 0:02:57.7]} 13. Rae1 {[%clk 0:02:34.7]} 13... b4 {[%clk 0:02:46.3]}
14. Nd1 {[%clk 0:02:34]} 14... Nxe2 {[%clk 0:02:38.8]} 15. Rxe2 {[%clk
0:02:30.9]} 15... fxe4 {[%clk 0:02:34.1]} 16. Bxe4 {[%clk 0:02:29.8]} 16... d5
{[%clk 0:02:12.9]} 17. Bg2 {[%clk 0:02:29]} 17... d4 {[%clk 0:02:13]} 18. Bg1
{[%clk 0:02:28.4]} 18... e5 {[%clk 0:02:03.6]} 19. Nf2 {[%clk 0:02:12.3]} 19...
Bb7 {[%clk 0:01:34.6]} 20. Ne4 {[%clk 0:02:09.5]} 20... exf4 {[%clk 0:01:28.2]}
21. gxf4 {[%clk 0:01:54.4]} 21... Qc7 {[%clk 0:01:19.4]} 22. Kh1 {[%clk
0:01:51.9]} 22... Nh6 {[%clk 0:01:11.5]} 23. Ng5 {[%clk 0:01:43.9]} 23... Bxg2+
{[%clk 0:01:07.1]} 24. Kxg2 {[%clk 0:01:44.8]} 24... Nf5 {[%clk 0:00:55.5]} 25.
Re4 {[%clk 0:01:31.2]} 25... Qc6 {[%clk 0:00:39.6]} 26. Kh2 {[%clk 0:01:30.7]}
26... Rfe8 {[%clk 0:00:36.5]} 27. Rfe1 {[%clk 0:01:24.8]} 27... h6 {[%clk
0:00:31.7]} 28. Rxe8+ {[%clk 0:01:18.3]} 28... Rxe8 {[%clk 0:00:31.9]} 29. Rxe8+
{[%clk 0:01:17.2]} 29... Qxe8 {[%clk 0:00:31.6]} 30. Ne4 {[%clk 0:01:18.1]}
30... Qc6 {[%clk 0:00:26.1]} 31. Bf2 {[%clk 0:01:03.2]} 31... Qc7 {[%clk
0:00:22.5]} 32. Kg2 {[%clk 0:00:57.6]} 32... a5 {[%clk 0:00:19.9]} 33. Bg3
{[%clk 0:00:39.7]} 33... Ne3+ {[%clk 0:00:14.7]} 34. Kh2 {[%clk 0:00:39.7]}
34... Nf5 {[%clk 0:00:12.9]} 35. Qe2 {[%clk 0:00:38]} 35... Kh7 {[%clk
0:00:11.9]} 36. Nd2 {[%clk 0:00:31.1]} 36... Nxg3 {[%clk 0:00:10.3]} 37. Kxg3
{[%clk 0:00:31.1]} 37... g5 {[%clk 0:00:10.3]} 38. Qe4+ {[%clk 0:00:30.4]} 38...
Kh8 {[%clk 0:00:09.9]} 39. Kf3 {[%clk 0:00:29.2]} 39... Qxf4+ {[%clk 0:00:09.7]}
40. Qxf4 {[%clk 0:00:30.1]} 40... gxf4 {[%clk 0:00:10.4]} 41. Kxf4 {[%clk
0:00:30.4]} 41... Bf6 {[%clk 0:00:09.5]} 42. Ne4 {[%clk 0:00:29.9]} 42... Be7
{[%clk 0:00:09.8]} 43. Ke5 {[%clk 0:00:28.3]} 43... a4 {[%clk 0:00:09]} 44. b3
{[%clk 0:00:27.2]} 44... axb3 {[%clk 0:00:05.7]} 45. axb3 {[%clk 0:00:28.1]}
45... Kg7 {[%clk 0:00:05]} 46. Kd5 {[%clk 0:00:28.3]} 46... Kg6 {[%clk
0:00:05.3]} 47. Nxc5 {[%clk 0:00:28.7]} 47... Bxc5 {[%clk 0:00:05.5]} 48. Kxc5
{[%clk 0:00:28.5]} 48... Kf5 {[%clk 0:00:06.4]} 49. Kxd4 {[%clk 0:00:27.9]}
49... Kf4 {[%clk 0:00:07.3]} 50. Kc5 {[%clk 0:00:20.9]} 50... h5 {[%clk
0:00:07.4]} 51. d4 {[%clk 0:00:21.1]} 51... h4 {[%clk 0:00:07.5]} 52. d5 {[%clk
0:00:21.6]} 52... Kg3 {[%clk 0:00:08.3]} 53. d6 {[%clk 0:00:22]} 53... Kxh3
{[%clk 0:00:09.2]} 54. d7 {[%clk 0:00:22.3]} 54... Kg2 {[%clk 0:00:09.6]} 55.
d8=Q {[%clk 0:00:22.8]} 55... h3 {[%clk 0:00:10.4]} 56. Qg5+ {[%clk 0:00:22.5]}
56... Kf1 {[%clk 0:00:10.1]} 1-0

[Event "*** Titled Tuesday Blitz"]
[Site "Chess.com"]
[Date "2020.05.19"]
[Round "4"]
[White "TheBigBadChessDad"]
[Black "LuckSlayeer"]
[Result "0-1"]
[WhiteElo "2256"]
[BlackElo "2445"]
[TimeControl "180+1"]
[EndTime "12:41:07 PDT"]
[Termination "LuckSlayeer won on time"]

1. d4 {[%clk 0:03:00.9]} 1... Nf6 {[%clk 0:02:59.5]} 2. Nf3 {[%clk 0:03:01.3]}
2... e6 {[%clk 0:02:59.8]} 3. Bf4 {[%clk 0:03:01.1]} 3... b6 {[%clk 0:02:59.8]}
4. e3 {[%clk 0:03:01.4]} 4... Bb7 {[%clk 0:03:00.5]} 5. Nbd2 {[%clk 0:03:01.5]}
5... Be7 {[%clk 0:03:01.2]} 6. h3 {[%clk 0:03:01.8]} 6... O-O {[%clk 0:03:01.6]}
7. Bd3 {[%clk 0:03:01.7]} 7... c5 {[%clk 0:03:01.5]} 8. c3 {[%clk 0:03:00.4]}
8... d5 {[%clk 0:02:59.9]} 9. Qe2 {[%clk 0:02:57.8]} 9... Nc6 {[%clk 0:02:56.6]}
10. O-O {[%clk 0:02:56.5]} 10... Bd6 {[%clk 0:02:56.7]} 11. Bxd6 {[%clk
0:02:53.9]} 11... Qxd6 {[%clk 0:02:56.7]} 12. dxc5 {[%clk 0:02:52.8]} 12... bxc5
{[%clk 0:02:55.4]} 13. e4 {[%clk 0:02:53.2]} 13... Ne5 {[%clk 0:02:32.3]} 14.
Nxe5 {[%clk 0:02:47.6]} 14... Qxe5 {[%clk 0:02:32.5]} 15. f4 {[%clk 0:02:32.7]}
15... Qh5 {[%clk 0:02:31.3]} 16. Qxh5 {[%clk 0:02:23.6]} 16... Nxh5 {[%clk
0:02:32.2]} 17. e5 {[%clk 0:02:21.5]} 17... g6 {[%clk 0:02:25.5]} 18. g4 {[%clk
0:02:17.8]} 18... Ng7 {[%clk 0:02:21.7]} 19. b4 {[%clk 0:02:13.4]} 19... d4
{[%clk 0:02:01]} 20. bxc5 {[%clk 0:01:51.7]} 20... dxc3 {[%clk 0:01:47.6]} 21.
Nb3 {[%clk 0:01:42.7]} 21... Rfd8 {[%clk 0:01:42.7]} 22. Bb5 {[%clk 0:01:30.3]}
22... a6 {[%clk 0:01:35]} 23. Ba4 {[%clk 0:01:22.4]} 23... Be4 {[%clk
0:01:30.6]} 24. Rac1 {[%clk 0:01:10]} 24... Rd3 {[%clk 0:01:26.8]} 25. Kh2
{[%clk 0:00:54.6]} 25... h5 {[%clk 0:01:18.2]} 26. Rf2 {[%clk 0:00:49.7]} 26...
h4 {[%clk 0:00:52.6]} 27. c6 {[%clk 0:00:41.1]} 27... Rc8 {[%clk 0:00:39.3]} 28.
Nc5 {[%clk 0:00:41.2]} 28... Rd4 {[%clk 0:00:38.9]} 29. Nxe4 {[%clk 0:00:40.2]}
29... Rxe4 {[%clk 0:00:39.2]} 30. Bb3 {[%clk 0:00:25.9]} 30... Rxc6 {[%clk
0:00:38.6]} 31. Rf3 {[%clk 0:00:26.2]} 31... Re2+ {[%clk 0:00:37.6]} 32. Kg1
{[%clk 0:00:25.4]} 32... c2 {[%clk 0:00:37.3]} 33. Rf2 {[%clk 0:00:17.1]} 33...
Rxf2 {[%clk 0:00:17.7]} 34. Kxf2 {[%clk 0:00:18]} 34... Ne8 {[%clk 0:00:17]} 35.
Rxc2 {[%clk 0:00:17.9]} 35... Rxc2+ {[%clk 0:00:16.7]} 36. Bxc2 {[%clk
0:00:18.8]} 36... Nc7 {[%clk 0:00:17.4]} 37. Be4 {[%clk 0:00:17.6]} 37... Kf8
{[%clk 0:00:16.4]} 38. Ke3 {[%clk 0:00:17.3]} 38... Ke7 {[%clk 0:00:16.8]} 39.
Kd4 {[%clk 0:00:17.4]} 39... Kd7 {[%clk 0:00:15.9]} 40. a4 {[%clk 0:00:14.9]}
40... Ne8 {[%clk 0:00:13.4]} 41. Kc5 {[%clk 0:00:14.5]} 41... Kc7 {[%clk
0:00:13.1]} 42. a5 {[%clk 0:00:12.2]} 42... f5 {[%clk 0:00:07.7]} 43. exf6
{[%clk 0:00:04.6]} 43... Nxf6 {[%clk 0:00:08]} 44. Bxg6 {[%clk 0:00:05]} 44...
Nd5 {[%clk 0:00:08.4]} 45. f5 {[%clk 0:00:04.2]} 45... Nf4 {[%clk 0:00:08.1]}
46. fxe6 {[%clk 0:00:03.1]} 46... Nxg6 {[%clk 0:00:08.2]} 0-1